[Event "10th LCC FIDE Open 2018"]
[Site "London"]
[Date "2018.12.15"]
[Round "8"]
[White "Burrows, Martin P"]
[Black "Knudsen, Simon"]
[Result "1-0"]
[ECO "B44"]
[WhiteElo "2134"]
[BlackElo "2206"]
[Annotator "NA"]
[PlyCount "77"]
[EventDate "2018.12.09"]
[EventType "swiss"]
[EventCountry "ENG"]
[SourceTitle "playchess.com"]
[Source "ChessBase"]
[SourceQuality "1"]
[TimeControl "40/5400+30:1800+30"]

1. e4 {[%emt 0:00:00]} c5 {[%emt 0:00:55]} 2. Nf3 {[%emt 0:00:00]} Nc6 {[%emt 0:00:43]} 3. d4 {[%emt 0:00:00]} cxd4 {[%emt 0:00:07]} 4. Nxd4 {[%emt 0:00:05]} e6 {[%emt 0:00:06]} 5. Nb5 {[%emt 0:00:29]} d6 {[%emt 0:06:03]} 6. c4 {[%emt 0:00:19]} Nf6 {[%emt 0:03:56]} 7. N1c3 {[%emt 0:00:09]} a6 {[%emt 0:04:56]} 8. Na3 {[%emt 0:00:06]} Be7 {[%emt 0:02:15]} 9. Be2 {[%emt 0:00:08]} O-O {[%emt 0:00:24]} 10. O-O {[%emt 0:00:07]} Bd7 {[%emt 0:04:47]} 11. Be3 {[%emt 0:02:22]} Qa5 {[%emt 0:02:36]} 12. Rc1 {[%emt 0:04:07]} Rfd8 {[%emt 0:20:23]} 13. f4 {[%emt 0:06:18]} Be8 {[%emt 0:00:22]} 14. Qe1 {[%emt 0:03:43]} d5 {[%emt 0:07:03]} 15. cxd5 {[%emt 0:16:12]} Bxa3 {[%emt 0:02:10]} 16. bxa3 {[%emt 0:07:56]} exd5 {[%emt 0:00:16]} 17. exd5 {[%emt 0:03:52]} Nxd5 {[%emt 0:00:07]} 18. Nxd5 {[%emt 0:00:21]} Qxd5 {[%emt 0:00:29]} 19. Bb6 {[%emt 0:03:35]} Rd6 {[%emt 0:03:29]} 20. Bc4 {[%emt 0:00:27]} Qf5 {[%emt 0:00:18]} 21. Qf2 {[%emt 0:07:12]} Na5 {[%emt 0:09:07]} 22. Be2 {[%emt 0:00:45]} Bb5 {[%emt 0:01:31]} 23. Rc5 {[%emt 0:07:30]} Qe6 {[%emt 0:02:13]} 24. Re5 {[%emt 0:01:53]} Rxb6 {[%emt 0:00:40]} 25. Rxe6 {[%emt 0:00:26]} Rxe6 {[%emt 0:00:04]} 26. Bxb5 {[%emt 0:01:02]} axb5 {[%emt 0:00:04]} 27. Qc5 {[%emt 0:02:42]} h6 {[%emt 0:00:58]} 28. Qxb5 {[%emt 0:00:55]} b6 {[%emt 0:00:04]} 29. f5 {[%emt 0:00:36]} Rd6 {[%emt 0:00:09]} 30. Re1 {[%emt 0:04:32]} Kh7 {[%emt 0:00:15]} 31. Re8 {[%emt 0:03:26]} Ra7 {[%emt 0:00:09]} 32. h3 {[%emt 0:02:05]} Rc7 {[%emt 0:00:14]} 33. Rb8 {[%emt 0:05:17]} Rc5 {[%emt 0:00:18]} 34. Qb1 {[%emt 0:04:10]} Nc4 {[%emt 0:00:05]} 35. f6+ {[%emt 0:02:28]} g6 {[%emt 0:00:06]} 36. Qe4 {[%emt 0:01:48]} Ne5 {[%emt 0:00:47]} 37. Qa8 {[%emt 0:01:41]} g5 {[%emt 0:00:06]} 38. Qe4+ {[%emt 0:02:49]} Ng6 {[%emt 0:00:05]} 39. Qe8 {[%emt 0:00:28]} 1-0

[Event "10th LCC FIDE Open 2018"]
[Site "London"]
[Date "2018.12.15"]
[Round "8"]
[White "Lindholm, Jere"]
[Black "Tombolis, Christopher"]
[Result "1/2-1/2"]
[ECO "B60"]
[WhiteElo "2130"]
[BlackElo "1898"]
[Annotator "NA"]
[PlyCount "34"]
[EventDate "2018.12.09"]
[EventType "swiss"]
[EventCountry "ENG"]
[SourceTitle "playchess.com"]
[Source "ChessBase"]
[SourceQuality "1"]
[TimeControl "40/5400+30:1800+30"]

1. e4 {[%emt 0:16:24]} c5 {[%emt 0:00:00]} 2. Nf3 {[%emt 0:00:35]} Nc6 {[%emt 0:00:00]} 3. d4 {[%emt 0:00:10]} cxd4 {[%emt 0:00:00]} 4. Nxd4 {[%emt 0:00:18]} Nf6 {[%emt 0:00:06]} 5. Nc3 {[%emt 0:00:07]} d6 {[%emt 0:00:04]} 6. Bg5 {[%emt 0:00:46]} a6 {[%emt 0:12:51]} 7. f4 {[%emt 0:09:03]} Qb6 {[%emt 0:07:42]} 8. Nb3 {[%emt 0:06:33]} Ng4 {[%emt 0:09:51]} 9. Qf3 {[%emt 0:04:18]} Nb4 {[%emt 0:10:05]} 10. Bd3 {[%emt 0:13:21]} g6 {[%emt 0:19:19]} 11. h3 {[%emt 0:14:44]} Qe3+ {[%emt 0:03:08]} 12. Qxe3 {[%emt 0:00:36]} Nxe3 {[%emt 0:00:07]} 13. Kf2 {[%emt 0:00:45]} Nexc2 {[%emt 0:01:28]} 14. Bxc2 {[%emt 0:00:10]} Nxc2 {[%emt 0:00:08]} 15. Rac1 {[%emt 0:01:38]} Nb4 {[%emt 0:01:23]} 16. Rhd1 {[%emt 0:01:26]} Bg7 {[%emt 0:08:53]} 17. Na4 {[%emt 0:03:58]} Nc6 {[%emt 0:04:29]} 1/2-1/2

[Event "10th LCC FIDE Open 2018"]
[Site "London"]
[Date "2018.12.15"]
[Round "8"]
[White "Osborne, Marcus E"]
[Black "Jaufarally, Nadia"]
[Result "0-1"]
[ECO "D00"]
[WhiteElo "2128"]
[BlackElo "1833"]
[Annotator "NA"]
[PlyCount "58"]
[EventDate "2018.12.09"]
[EventType "swiss"]
[EventCountry "ENG"]
[SourceTitle "playchess.com"]
[Source "ChessBase"]
[SourceQuality "1"]
[TimeControl "40/5400+30:1800+30"]

1. d4 {[%emt 0:00:00]} Nf6 {[%emt 0:00:00]} 2. Bg5 {[%emt 0:00:00]} d5 {[%emt 0:00:00]} 3. Bxf6 {[%emt 0:00:00]} gxf6 {[%emt 0:00:29]} 4. c4 {[%emt 0:00:00]} c5 {[%emt 0:00:30]} 5. cxd5 {[%emt 0:00:15]} Qxd5 {[%emt 0:00:27]} 6. Nf3 {[%emt 0:00:13]} cxd4 {[%emt 0:01:31]} 7. Nc3 {[%emt 0:00:09]} Qd7 {[%emt 0:06:16]} 8. Nxd4 {[%emt 0:00:36]} a6 {[%emt 0:01:06]} 9. e3 {[%emt 0:16:03]} Nc6 {[%emt 0:02:04]} 10. Bc4 {[%emt 0:08:50]} Nxd4 {[%emt 0:03:13]} 11. exd4 {[%emt 0:00:18]} b5 {[%emt 0:01:39]} 12. Bd5 {[%emt 0:07:35]} Bb7 {[%emt 0:00:38]} 13. Qf3 {[%emt 0:00:26]} Bxd5 {[%emt 0:01:35]} 14. Nxd5 {[%emt 0:00:13]} Rd8 {[%emt 0:01:34]} 15. Ne3 {[%emt 0:02:22]} e6 {[%emt 0:18:27]} 16. O-O {[%emt 0:17:54]} Bg7 {[%emt 0:00:45]} 17. Ng4 {[%emt 0:01:05]} O-O {[%emt 0:07:21]} 18. Rfd1 {[%emt 0:05:49]} f5 {[%emt 0:04:11]} 19. Ne5 {[%emt 0:00:27]} Qd5 {[%emt 0:02:43]} 20. Qh5 {[%emt 0:01:46]} Qe4 {[%emt 0:05:16]} 21. Re1 {[%emt 0:02:25]} Qc2 {[%emt 0:04:48]} 22. Re2 {[%emt 0:00:13]} Qc7 {[%emt 0:00:17]} 23. Nf3 {[%emt 0:01:36]} Qf4 {[%emt 0:01:03]} 24. Ne5 {[%emt 0:14:19]} Qxd4 {[%emt 0:04:07]} 25. Rae1 {[%emt 0:00:09]} Rd5 {[%emt 0:06:37]} 26. h3 {[%emt 0:03:46]} Rxe5 {[%emt 0:01:31]} 27. Rxe5 {[%emt 0:04:43]} Bxe5 {[%emt 0:00:08]} 28. g4 {[%emt 0:00:07]} Kh8 {[%emt 0:04:50]} 29. gxf5 {[%emt 0:01:33]} Rg8+ {[%emt 0:00:21]} 0-1

[Event "10th LCC FIDE Open 2018"]
[Site "London"]
[Date "2018.12.15"]
[Round "8"]
[White "Bhawoodien, Mohamed Ozayr"]
[Black "Saidmurodov, Shahjahon"]
[Result "1-0"]
[ECO "A56"]
[WhiteElo "2123"]
[BlackElo "1549"]
[Annotator "NA"]
[PlyCount "123"]
[EventDate "2018.12.09"]
[EventType "swiss"]
[EventCountry "ENG"]
[SourceTitle "playchess.com"]
[Source "ChessBase"]
[SourceQuality "1"]
[TimeControl "40/5400+30:1800+30"]

1. d4 {[%emt 1:03:09]} Nf6 {[%emt 0:00:08]} 2. c4 {[%emt 0:00:06]} c5 {[%emt 0:02:09]} 3. d5 {[%emt 0:00:51]} e5 {[%emt 0:00:07]} 4. Nc3 {[%emt 0:00:15]} d6 {[%emt 0:00:36]} 5. e4 {[%emt 0:00:11]} Be7 {[%emt 0:00:52]} 6. g3 {[%emt 0:00:06]} O-O {[%emt 0:01:10]} 7. h4 {[%emt 0:00:08]} Na6 {[%emt 0:02:51]} 8. Bh3 {[%emt 0:00:35]} Nc7 {[%emt 0:01:06]} 9. Bxc8 {[%emt 0:00:32]} Qxc8 {[%emt 0:00:12]} 10. Kf1 {[%emt 0:05:46]} a6 {[%emt 0:03:38]} 11. a4 {[%emt 0:00:09]} b5 {[%emt 0:03:09]} 12. axb5 {[%emt 0:00:17]} axb5 {[%emt 0:00:07]} 13. Rxa8 {[%emt 0:00:12]} Qxa8 {[%emt 0:00:11]} 14. cxb5 {[%emt 0:00:23]} Rb8 {[%emt 0:00:54]} 15. Qd3 {[%emt 0:13:42]} Qa5 {[%emt 0:00:36]} 16. Nge2 {[%emt 0:00:38]} Nxb5 {[%emt 0:02:26]} 17. Nxb5 {[%emt 0:00:07]} Qxb5 {[%emt 0:02:12]} 18. Qxb5 {[%emt 0:00:08]} Rxb5 {[%emt 0:00:04]} 19. Nc3 {[%emt 0:07:50]} Rb8 {[%emt 0:02:50]} 20. Ke2 {[%emt 0:05:15]} Kf8 {[%emt 0:00:28]} 21. Kd1 {[%emt 0:09:13]} Ke8 {[%emt 0:02:34]} 22. Kc2 {[%emt 0:01:30]} Kd7 {[%emt 0:00:52]} 23. Bg5 {[%emt 0:07:34]} h6 {[%emt 0:04:35]} 24. Bxf6 {[%emt 0:00:07]} Bxf6 {[%emt 0:00:06]} 25. Ra1 {[%emt 0:01:02]} Bd8 {[%emt 0:01:14]} 26. Ra7+ {[%emt 0:02:34]} Bc7 {[%emt 0:00:14]} 27. h5 {[%emt 0:00:29]} Kc8 {[%emt 0:03:30]} 28. f3 {[%emt 0:02:50]} Kd8 {[%emt 0:07:01]} 29. Nd1 {[%emt 0:01:20]} Kd7 {[%emt 0:01:49]} 30. Ne3 {[%emt 0:03:27]} g6 {[%emt 0:03:07]} 31. Ng4 {[%emt 0:09:59]} gxh5 {[%emt 0:04:04]} 32. Nf6+ {[%emt 0:02:10]} Ke7 {[%emt 0:00:13]} 33. Nxh5 {[%emt 0:00:21]} Kd7 {[%emt 0:02:03]} 34. Nf6+ {[%emt 0:04:08]} Ke7 {[%emt 0:01:21]} 35. Ng4 {[%emt 0:00:19]} Kd7 {[%emt 0:00:54]} 36. Nxh6 {[%emt 0:00:26]} Rh8 {[%emt 0:00:26]} 37. Nxf7 {[%emt 0:02:08]} Rh3 {[%emt 0:02:04]} 38. Ng5 {[%emt 0:00:23]} Rxg3 {[%emt 0:00:30]} 39. Ne6 {[%emt 0:00:30]} Rxf3 {[%emt 0:00:16]} 40. Rxc7+ {[%emt 0:00:15]} Ke8 {[%emt 0:00:03]} 41. Ng7+ {[%emt 0:02:02]} Kd8 {[%emt 0:00:59]} 42. Rc6 {[%emt 0:01:01]} Kd7 {[%emt 0:00:49]} 43. Nf5 {[%emt 0:00:24]} Rf2+ {[%emt 0:00:19]} 44. Kd3 {[%emt 0:01:27]} Rxb2 {[%emt 0:00:55]} 45. Rxd6+ {[%emt 0:00:06]} Ke8 {[%emt 0:00:33]} 46. Re6+ {[%emt 0:00:09]} Kd7 {[%emt 0:00:41]} 47. Re7+ {[%emt 0:00:16]} Kd8 {[%emt 0:00:20]} 48. Rxe5 {[%emt 0:00:08]} Rb3+ {[%emt 0:00:10]} 49. Kc4 {[%emt 0:00:10]} Rb4+ {[%emt 0:00:05]} 50. Kxc5 {[%emt 0:00:09]} Rb1 {[%emt 0:00:16]} 51. Re7 {[%emt 0:01:06]} Rc1+ {[%emt 0:00:33]} 52. Kd6 {[%emt 0:00:26]} Ra1 {[%emt 0:00:12]} 53. Nd4 {[%emt 0:00:43]} Kc8 {[%emt 0:00:39]} 54. Rc7+ {[%emt 0:00:24]} Kb8 {[%emt 0:00:12]} 55. Nc6+ {[%emt 0:00:13]} Ka8 {[%emt 0:00:06]} 56. Rc8+ {[%emt 0:00:24]} Kb7 {[%emt 0:00:09]} 57. Rb8+ {[%emt 0:00:08]} Ka6 {[%emt 0:00:09]} 58. Ra8+ {[%emt 0:00:07]} Kb7 {[%emt 0:00:20]} 59. Rxa1 {[%emt 0:00:10]} Kc8 {[%emt 0:00:07]} 60. Nd4 {[%emt 0:00:23]} Kb7 {[%emt 0:00:06]} 61. Rb1+ {[%emt 0:00:12]} Ka8 {[%emt 0:00:04]} 62. Kc7 {[%emt 0:01:03]} 1-0

[Event "10th LCC FIDE Open 2018"]
[Site "London"]
[Date "2018.12.15"]
[Round "8"]
[White "Nettleton, Charlie B"]
[Black "Gullaksen, Eirik"]
[Result "0-1"]
[ECO "A26"]
[WhiteElo "2059"]
[BlackElo "2349"]
[Annotator "NA"]
[PlyCount "70"]
[EventDate "2018.12.09"]
[EventType "swiss"]
[EventCountry "ENG"]
[SourceTitle "playchess.com"]
[Source "ChessBase"]
[SourceQuality "1"]
[TimeControl "40/5400+30:1800+30"]

1. c4 {[%emt 0:10:50]} g6 {[%emt 0:00:00]} 2. Nc3 {[%emt 0:00:32]} Bg7 {[%emt 0:00:18]} 3. g3 {[%emt 0:00:15]} e5 {[%emt 0:00:32]} 4. Bg2 {[%emt 0:00:06]} Nc6 {[%emt 0:00:32]} 5. d3 {[%emt 0:02:07]} d6 {[%emt 0:00:12]} 6. Rb1 {[%emt 0:00:19]} Nge7 {[%emt 0:02:12]} 7. Nf3 {[%emt 0:09:07]} a6 {[%emt 0:00:25]} 8. O-O {[%emt 0:00:23]} O-O {[%emt 0:00:17]} 9. a3 {[%emt 0:09:44]} Rb8 {[%emt 0:00:46]} 10. b4 {[%emt 0:04:05]} b5 {[%emt 0:00:27]} 11. Nd5 {[%emt 0:06:14]} Nxd5 {[%emt 0:03:38]} 12. cxd5 {[%emt 0:00:02]} Ne7 {[%emt 0:00:24]} 13. Nd2 {[%emt 0:01:49]} Bb7 {[%emt 0:00:34]} 14. e4 {[%emt 0:05:38]} c6 {[%emt 0:02:49]} 15. dxc6 {[%emt 0:00:12]} Nxc6 {[%emt 0:00:17]} 16. Nb3 {[%emt 0:00:12]} f5 {[%emt 0:00:45]} 17. exf5 {[%emt 0:06:29]} gxf5 {[%emt 0:04:20]} 18. Qh5 {[%emt 0:00:42]} Ne7 {[%emt 0:11:50]} 19. Bh6 {[%emt 0:08:14]} Bxg2 {[%emt 0:02:04]} 20. Kxg2 {[%emt 0:05:06]} Bxh6 {[%emt 0:03:41]} 21. Qxh6 {[%emt 0:00:03]} f4 {[%emt 0:00:16]} 22. d4 {[%emt 0:02:45]} Ng6 {[%emt 0:06:09]} 23. dxe5 {[%emt 0:01:03]} dxe5 {[%emt 0:00:12]} 24. Rbd1 {[%emt 0:00:41]} Qf6 {[%emt 0:00:28]} 25. Kg1 {[%emt 0:09:35]} Rbd8 {[%emt 0:04:31]} 26. Rxd8 {[%emt 0:00:28]} Rxd8 {[%emt 0:00:17]} 27. Nc5 {[%emt 0:00:09]} Qf5 {[%emt 0:07:25]} 28. Re1 {[%emt 0:01:27]} Rd4 {[%emt 0:07:46]} 29. Nxa6 {[%emt 0:07:56]} e4 {[%emt 0:02:41]} 30. Nc5 {[%emt 0:01:49]} e3 {[%emt 0:01:03]} 31. fxe3 {[%emt 0:03:24]} fxg3 {[%emt 0:00:26]} 32. hxg3 {[%emt 0:00:26]} Rd2 {[%emt 0:00:43]} 33. Rf1 {[%emt 0:00:31]} Qg4 {[%emt 0:00:24]} 34. Rf8+ {[%emt 0:01:31]} Nxf8 {[%emt 0:00:15]} 35. Qf4 {[%emt 0:00:23]} Qd1+ {[%emt 0:01:23]} 0-1

[Event "10th LCC FIDE Open 2018"]
[Site "London"]
[Date "2018.12.15"]
[Round "8"]
[White "Ratnesan, Ranesh"]
[Black "Dauletova, Gulmira"]
[Result "0-1"]
[ECO "A45"]
[WhiteElo "2055"]
[BlackElo "2261"]
[Annotator "NA"]
[PlyCount "74"]
[EventDate "2018.12.09"]
[EventType "swiss"]
[EventCountry "ENG"]
[SourceTitle "playchess.com"]
[Source "ChessBase"]
[SourceQuality "1"]
[TimeControl "40/5400+30:1800+30"]

1. d4 {[%emt 0:00:00]} Nf6 {[%emt 0:03:21]} 2. Bg5 {[%emt 0:00:00]} Ne4 {[%emt 0:00:26]} 3. Bf4 {[%emt 0:00:31]} d5 {[%emt 0:02:36]} 4. e3 {[%emt 0:01:48]} c5 {[%emt 0:07:39]} 5. c3 {[%emt 0:06:20]} Qb6 {[%emt 0:04:49]} 6. Qb3 {[%emt 0:06:14]} c4 {[%emt 0:01:25]} 7. Qxb6 {[%emt 0:05:23]} axb6 {[%emt 0:00:03]} 8. Nd2 {[%emt 0:01:09]} Nxd2 {[%emt 0:14:57]} 9. Kxd2 {[%emt 0:00:10]} Bf5 {[%emt 0:02:45]} 10. Be2 {[%emt 0:21:24]} Nc6 {[%emt 0:01:42]} 11. Nf3 {[%emt 0:04:03]} h6 {[%emt 0:03:36]} 12. a3 {[%emt 0:08:16]} b5 {[%emt 0:12:57]} 13. Rae1 {[%emt 0:02:16]} e6 {[%emt 0:00:35]} 14. Ne5 {[%emt 0:03:30]} b4 {[%emt 0:26:04]} 15. axb4 {[%emt 0:22:19]} Ra2 {[%emt 0:00:22]} 16. Nxc6 {[%emt 0:00:28]} Rxb2+ {[%emt 0:01:28]} 17. Kd1 {[%emt 0:02:12]} Rb1+ {[%emt 0:00:40]} 18. Kd2 {[%emt 0:00:06]} Rb2+ {[%emt 0:00:02]} 19. Kd1 {[%emt 0:00:06]} bxc6 {[%emt 0:00:03]} 20. f3 {[%emt 0:01:29]} Rb1+ {[%emt 0:00:43]} 21. Kd2 {[%emt 0:00:07]} Rb2+ {[%emt 0:00:01]} 22. Kd1 {[%emt 0:00:07]} Be7 {[%emt 0:01:31]} 23. e4 {[%emt 0:02:16]} Bg6 {[%emt 0:00:56]} 24. Bc1 {[%emt 0:04:00]} Ra2 {[%emt 0:00:21]} 25. Bf1 {[%emt 0:01:59]} Kd7 {[%emt 0:00:18]} 26. h4 {[%emt 0:00:38]} Rha8 {[%emt 0:00:29]} 27. g3 {[%emt 0:00:54]} Ra1 {[%emt 0:02:35]} 28. Rg1 {[%emt 0:01:54]} R8a3 {[%emt 0:02:48]} 29. Kc2 {[%emt 0:02:20]} R3a2+ {[%emt 0:00:03]} 30. Kd1 {[%emt 0:00:05]} Ra3 {[%emt 0:00:04]} 31. Kc2 {[%emt 0:00:02]} R3a2+ {[%emt 0:00:03]} 32. Kd1 {[%emt 0:00:02]} Rb1 {[%emt 0:00:27]} 33. Rg2 {[%emt 0:00:22]} Raa1 {[%emt 0:00:36]} 34. Rc2 {[%emt 0:01:36]} Bd6 {[%emt 0:00:26]} 35. f4 {[%emt 0:01:28]} Bxe4 {[%emt 0:03:51]} 36. Rxe4 {[%emt 0:00:13]} dxe4 {[%emt 0:00:02]} 37. Bxc4 {[%emt 0:00:15]} e3 {[%emt 0:01:34]} 0-1

[Event "10th LCC FIDE Open 2018"]
[Site "London"]
[Date "2018.12.15"]
[Round "8"]
[White "Bin-Suhayl, Ieysaa"]
[Black "Pollack, Oscar"]
[Result "1-0"]
[ECO "E84"]
[WhiteElo "2038"]
[BlackElo "2150"]
[Annotator "NA"]
[PlyCount "60"]
[EventDate "2018.12.09"]
[EventType "swiss"]
[EventCountry "ENG"]
[SourceTitle "playchess.com"]
[Source "ChessBase"]
[SourceQuality "1"]
[TimeControl "40/5400+30:1800+30"]

1. d4 {[%emt 0:00:00]} Nf6 {[%emt 0:05:56]} 2. c4 {[%emt 0:00:00]} g6 {[%emt 0:00:03]} 3. Nc3 {[%emt 0:00:00]} Bg7 {[%emt 0:00:02]} 4. e4 {[%emt 0:00:00]} d6 {[%emt 0:00:02]} 5. f3 {[%emt 0:00:00]} O-O {[%emt 0:00:04]} 6. Be3 {[%emt 0:00:00]} Nc6 {[%emt 0:00:03]} 7. Nge2 {[%emt 0:00:03]} a6 {[%emt 0:00:04]} 8. Qd2 {[%emt 0:00:15]} Rb8 {[%emt 0:00:03]} 9. Rc1 {[%emt 0:02:02]} Bd7 {[%emt 0:00:11]} 10. b3 {[%emt 0:00:28]} b5 {[%emt 0:01:28]} 11. cxb5 {[%emt 0:00:10]} axb5 {[%emt 0:00:06]} 12. d5 {[%emt 0:00:02]} Ne5 {[%emt 0:01:28]} 13. Nd4 {[%emt 0:00:09]} b4 {[%emt 0:02:29]} 14. Ncb5 {[%emt 0:00:11]} e6 {[%emt 0:04:27]} 15. dxe6 {[%emt 0:04:03]} fxe6 {[%emt 0:00:11]} 16. Nxc7 {[%emt 0:00:46]} Qe7 {[%emt 0:02:17]} 17. Be2 {[%emt 0:14:05]} Rfc8 {[%emt 0:03:02]} 18. O-O {[%emt 0:01:49]} Rb7 {[%emt 0:03:08]} 19. Na6 {[%emt 0:05:20]} d5 {[%emt 0:02:19]} 20. Rxc8+ {[%emt 0:01:57]} Bxc8 {[%emt 0:00:01]} 21. Rc1 {[%emt 0:00:10]} Qe8 {[%emt 0:03:02]} 22. Nxb4 {[%emt 0:05:43]} dxe4 {[%emt 0:00:55]} 23. Ba6 {[%emt 0:03:29]} Rb8 {[%emt 0:00:09]} 24. Bf4 {[%emt 0:01:30]} Nd5 {[%emt 0:00:22]} 25. Nxd5 {[%emt 0:10:02]} Bxa6 {[%emt 0:02:17]} 26. Nc7 {[%emt 0:01:00]} Qc8 {[%emt 0:04:39]} 27. Ncxe6 {[%emt 0:00:27]} Qe8 {[%emt 0:05:41]} 28. Nxg7 {[%emt 0:00:17]} Kxg7 {[%emt 0:00:09]} 29. Bxe5+ {[%emt 0:00:27]} Qxe5 {[%emt 0:00:12]} 30. Nc6 {[%emt 0:00:14]} Bc8 {[%emt 0:01:50]} 1-0

[Event "10th LCC FIDE Open 2018"]
[Site "London"]
[Date "2018.12.15"]
[Round "8"]
[White "Wilks, Simon"]
[Black "Gilevych, Artem"]
[Result "0-1"]
[ECO "C17"]
[WhiteElo "2019"]
[BlackElo "2409"]
[Annotator "NA"]
[PlyCount "80"]
[EventDate "2018.12.09"]
[EventType "swiss"]
[EventCountry "ENG"]
[SourceTitle "playchess.com"]
[Source "ChessBase"]
[SourceQuality "1"]
[TimeControl "40/5400+30:1800+30"]

1. e4 {[%emt 0:03:54]} e6 {[%emt 0:02:14]} 2. d4 {[%emt 0:00:00]} d5 {[%emt 0:00:06]} 3. Nc3 {[%emt 0:00:00]} Bb4 {[%emt 0:00:06]} 4. e5 {[%emt 0:00:33]} c5 {[%emt 0:00:06]} 5. Bd2 {[%emt 0:06:04]} Nh6 {[%emt 0:09:42]} 6. Nb5 {[%emt 0:03:21]} Bxd2+ {[%emt 0:00:00]} 7. Qxd2 {[%emt 0:00:04]} O-O {[%emt 0:03:06]} 8. Nf3 {[%emt 0:06:10]} Nc6 {[%emt 0:00:00]} 9. dxc5 {[%emt 0:00:30]} b6 {[%emt 0:00:00]} 10. Nbd4 {[%emt 0:09:17]} Nxd4 {[%emt 0:00:00]} 11. Qxd4 {[%emt 0:04:16]} Nf5 {[%emt 0:00:00]} 12. Qc3 {[%emt 0:09:30]} d4 {[%emt 0:00:25]} 13. Qc4 {[%emt 0:01:56]} Bb7 {[%emt 0:06:07]} 14. Bd3 {[%emt 0:04:25]} bxc5 {[%emt 0:00:00]} 15. Qxc5 {[%emt 0:06:33]} Rc8 {[%emt 0:06:23]} 16. Qxa7 {[%emt 0:04:14]} Bxf3 {[%emt 0:00:33]} 17. gxf3 {[%emt 0:00:13]} Qd5 {[%emt 0:00:04]} 18. Be4 {[%emt 0:00:51]} Qxe5 {[%emt 0:00:28]} 19. O-O-O {[%emt 0:00:42]} Rc5 {[%emt 0:01:15]} 20. Kb1 {[%emt 0:08:00]} Rfc8 {[%emt 0:09:58]} 21. Rhe1 {[%emt 0:04:40]} g6 {[%emt 0:05:44]} 22. Qd7 {[%emt 0:04:34]} Qf6 {[%emt 0:06:12]} 23. Re2 {[%emt 0:06:29]} R5c7 {[%emt 0:00:00]} 24. Qa4 {[%emt 0:00:00]} Rc4 {[%emt 0:00:00]} 25. Qd7 {[%emt 0:00:24]} R8c7 {[%emt 0:07:11]} 26. Qe8+ {[%emt 0:03:24]} Kg7 {[%emt 0:00:02]} 27. Qb5 {[%emt 0:00:23]} Nd6 {[%emt 0:00:43]} 28. Qb3 {[%emt 0:02:55]} e5 {[%emt 0:01:17]} 29. Bd3 {[%emt 0:03:29]} R4c5 {[%emt 0:01:37]} 30. Qb6 {[%emt 0:01:43]} R7c6 {[%emt 0:02:13]} 31. Qb4 {[%emt 0:01:53]} Qxf3 {[%emt 0:01:12]} 32. Rde1 {[%emt 0:00:39]} f6 {[%emt 0:02:45]} 33. a4 {[%emt 0:17:04]} Rc7 {[%emt 0:03:03]} 34. a5 {[%emt 0:08:12]} g5 {[%emt 0:21:26]} 35. a6 {[%emt 0:02:12]} g4 {[%emt 0:00:42]} 36. Qb8 {[%emt 0:00:55]} Qc6 {[%emt 0:00:46]} 37. Rg1 {[%emt 0:01:00]} h5 {[%emt 0:00:15]} 38. a7 {[%emt 0:00:00]} Ra5 {[%emt 0:00:40]} 39. b3 {[%emt 0:01:10]} Qc3 {[%emt 0:00:34]} 40. a8=Q {[%emt 0:00:00]} Qa1# {[%emt 0:01:52]} 0-1

[Event "10th LCC FIDE Open 2018"]
[Site "London"]
[Date "2018.12.15"]
[Round "8"]
[White "Mueller, Jens"]
[Black "Bates, Caspar J"]
[Result "0-1"]
[ECO "A45"]
[WhiteElo "1981"]
[BlackElo "2113"]
[Annotator "NA"]
[PlyCount "58"]
[EventDate "2018.12.09"]
[EventType "swiss"]
[EventCountry "ENG"]
[SourceTitle "playchess.com"]
[Source "ChessBase"]
[SourceQuality "1"]
[TimeControl "40/5400+30:1800+30"]

1. d4 {[%emt 0:00:00]} Nf6 {[%emt 0:00:00]} 2. Bf4 {[%emt 0:00:00]} b6 {[%emt 0:00:00]} 3. e3 {[%emt 0:00:14]} Bb7 {[%emt 0:00:18]} 4. Nd2 {[%emt 0:00:35]} d6 {[%emt 0:02:19]} 5. h3 {[%emt 0:00:37]} g6 {[%emt 0:02:08]} 6. Ngf3 {[%emt 0:01:13]} Bg7 {[%emt 0:00:29]} 7. c3 {[%emt 0:02:16]} O-O {[%emt 0:00:58]} 8. Qc2 {[%emt 0:10:13]} Nbd7 {[%emt 0:10:27]} 9. O-O-O {[%emt 0:15:14]} c5 {[%emt 0:00:51]} 10. Bg5 {[%emt 0:05:32]} Rc8 {[%emt 0:01:09]} 11. Kb1 {[%emt 0:04:49]} a6 {[%emt 0:02:09]} 12. Nh2 {[%emt 0:05:55]} b5 {[%emt 0:05:20]} 13. Ka1 {[%emt 0:19:24]} Nd5 {[%emt 0:13:37]} 14. Ne4 {[%emt 0:04:55]} cxd4 {[%emt 0:08:21]} 15. exd4 {[%emt 0:00:14]} Qb6 {[%emt 0:02:13]} 16. Be3 {[%emt 0:01:52]} b4 {[%emt 0:02:45]} 17. c4 {[%emt 0:01:18]} b3 {[%emt 0:00:33]} 18. Qd2 {[%emt 0:01:47]} Nb4 {[%emt 0:00:43]} 19. Nc3 {[%emt 0:00:54]} Nc2+ {[%emt 0:11:31]} 20. Kb1 {[%emt 0:00:15]} Nxe3 {[%emt 0:00:03]} 21. fxe3 {[%emt 0:00:28]} bxa2+ {[%emt 0:00:33]} 22. Kxa2 {[%emt 0:03:38]} e5 {[%emt 0:02:40]} 23. Nf3 {[%emt 0:00:00]} Bxf3 {[%emt 0:00:36]} 24. gxf3 {[%emt 0:00:00]} Rb8 {[%emt 0:00:18]} 25. Kb1 {[%emt 0:00:14]} exd4 {[%emt 0:00:39]} 26. Nd5 {[%emt 0:02:38]} dxe3 {[%emt 0:03:23]} 27. Nxb6 {[%emt 0:00:13]} exd2 {[%emt 0:00:11]} 28. Nxd7 {[%emt 0:03:06]} Rxb2+ {[%emt 0:00:10]} 29. Ka1 {[%emt 0:00:06]} Rd8 {[%emt 0:01:19]} 0-1